fUST/lending_fUST_20251231
["ID","MTS","AMOUNT","RATE_DAILY","PERIOD"]
[400143914,1767150845461,-2535.20098081,0.000119,2]
[400143916,1767150850549,5000.0,0.00011888,2]
[400143917,1767150857496,1009.81045584,0.00011799,2]
[400143918,1767150873421,3990.19954416,0.0001189,2]
[400143919,1767150873445,1009.80045584,0.0001189,2]
[400143920,1767150880053,-500.0,0.00011899,2]
[400143921,1767150880075,-407.68478211,0.00011899,2]
[400143922,1767150880096,-500.0,0.00011899,2]
[400143923,1767150880116,-326.2516625,0.00011899,2]
[400143924,1767150880138,-500.0,0.00011899,2]
[400143925,1767150880158,-240.37679286,0.000119,2]
[400143926,1767150880182,-2525.68676253,0.000119,2]
[400143927,1767150881991,-5000.0,0.000119,2]
[400143929,1767150888280,-5000.0,0.000119,2]
[400143930,1767150890382,-5000.0,0.000119,2]
[400143931,1767150896490,5000.0,0.0001189,2]
[400143932,1767150898190,-500.0,0.00011899,2]
[400143933,1767150898212,-500.0,0.00011899,2]
[400143934,1767150898232,-500.0,0.00011899,2]
[400143935,1767150898252,-401.6223824,0.00011899,2]
[400143936,1767150898273,-500.0,0.00011899,2]
[400143937,1767150898295,-500.0,0.00011899,2]
[400143938,1767150898316,-500.0,0.00011899,2]
[400143939,1767150898337,-500.0,0.00011899,2]
[400143940,1767150898358,-424.17575141,0.00011899,2]
[400143941,1767150898382,-674.20186619,0.000119,2]
[400143943,1767150900171,-5000.0,0.000119,2]
[400143944,1767150901866,-300.0,0.00011899,2]
[400143945,1767150901893,-4700.0,0.000119,2]
[400143946,1767150903420,-300.0,0.00011899,2]
[400143947,1767150903442,-300.0,0.00011899,2]
[400143948,1767150903464,-300.0,0.00011899,2]
[400143949,1767150903490,-4100.0,0.000119,2]
[400143952,1767150919863,3990.20954416,0.0001189,2]
[400143953,1767150919887,1009.79045584,0.0001189,2]
[400143954,1767150923656,500.0,0.00028767,120]
[400143956,1767150943495,5000.0,0.00013,3]
[400143957,1767150951893,-300.0,0.00011899,2]
[400143958,1767150951915,-1200.0,0.00011899,2]
[400143959,1767150951935,-500.0,0.00011899,2]
[400143960,1767150951957,-500.0,0.00011899,2]
[400143961,1767150951977,-500.0,0.00011899,2]
[400143962,1767150951998,-294.09370762,0.00011899,2]
[400143963,1767150952022,-500.0,0.00011899,2]
[400143964,1767150952044,-500.0,0.00011899,2]
[400143965,1767150952064,-500.0,0.00011899,2]
[400143966,1767150952086,-205.90629238,0.00011899,2]
[400143967,1767150953405,330.05685762,0.00011398,2]
[400143968,1767150953928,-294.09370762,0.00011899,2]
[400143969,1767150953951,-500.0,0.00011899,2]
[400143970,1767150953974,-211.82826029,0.00011899,2]
[400143971,1767150953997,-500.0,0.00011899,2]
[400143972,1767150954020,-500.0,0.00011899,2]
[400143973,1767150954043,-500.0,0.00011899,2]
[400143974,1767150954066,-500.0,0.00011899,2]
[400143975,1767150954089,-500.0,0.00011899,2]
[400143976,1767150954111,-500.0,0.00011899,2]
[400143977,1767150954137,-500.0,0.00011899,2]
[400143978,1767150954161,-494.07803209,0.00011899,2]
[400143979,1767150956056,594.10234372,0.00011398,2]
[400143980,1767150958020,-5.92196791,0.00011899,2]
[400143981,1767150958045,-500.0,0.00011899,2]
[400143982,1767150958068,-500.0,0.00011899,2]
[400143983,1767150958092,-500.0,0.00011899,2]
[400143984,1767150958115,-500.0,0.00011899,2]
[400143985,1767150958138,-500.0,0.00011899,2]
[400143986,1767150958160,-500.0,0.00011899,2]
[400143987,1767150958182,-606.09255545,0.00011899,2]
[400143988,1767150958204,-500.0,0.00011899,2]
[400143989,1767150958225,-500.0,0.00011899,2]
[400143990,1767150958247,-387.98547664,0.00011899,2]
[400143991,1767150958620,2376.40937487,0.00011398,2]
[400143992,1767150960135,-112.01452336,0.00011899,2]
[400143993,1767150960159,-500.0,0.00011899,2]
[400143994,1767150960189,-301.02135319,0.00011899,2]
[400143995,1767150960210,-500.0,0.00011899,2]
[400143996,1767150960231,-504.471551,0.00011899,2]
[400143997,1767150960258,-3082.49257245,0.000119,2]
[400143998,1767150961605,431.50554577,0.00011881,2]
[400143999,1767150962581,-300.0,0.00011899,2]
[400144000,1767150962609,-4700.0,0.000119,2]
[400144001,1767150964373,-500.0,0.00011899,2]
[400144002,1767150964396,-500.0,0.00011899,2]
[400144003,1767150964418,-500.0,0.00011899,2]
[400144004,1767150964439,-500.0,0.00011899,2]
[400144005,1767150964461,-500.0,0.00011899,2]
[400144006,1767150964482,-500.0,0.00011899,2]
[400144007,1767150964502,-511.41050497,0.00011899,2]
[400144008,1767150964528,-1488.58949503,0.000119,2]
[400144009,1767150964583,776.70998238,0.00011881,2]
[400144010,1767150966449,5000.0,0.00013,3]
[400144011,1767150966664,-5000.0,0.000119,2]
[400144012,1767150967700,1380.81774646,0.00011881,2]
[400144013,1767150968242,-5000.0,0.000119,2]
[400144014,1767150970548,2157.52772885,0.00011881,2]
[400144015,1767150973690,943.08996449,0.00011881,2]
[400144016,1767150973711,2163.74996505,0.00011881,2]
[400144017,1767150976554,4228.75434854,0.00011881,2]
[400144019,1767150990912,5000.0,0.00013,3]
[400144021,1767151013768,3607.50568641,0.0001189,2]
[400144023,1767151060799,-1392.49431359,0.0001189,2]
[400144024,1767151060825,-300.0,0.00011899,2]
[400144025,1767151060846,-500.0,0.00011899,2]
[400144026,1767151060869,-500.0,0.00011899,2]
[400144027,1767151060891,-500.0,0.00011899,2]
[400144028,1767151060913,-300.0,0.00011899,2]
[400144029,1767151060933,-500.0,0.00011899,2]
[400144030,1767151060954,-193.09804967,0.00011899,2]
[400144031,1767151060978,-814.40763674,0.000119,2]
[400144032,1767151062566,-5000.0,0.000119,2]
[400144033,1767151064000,-5000.0,0.000119,2]
[400144034,1767151065550,-5000.0,0.000119,2]
[400144035,1767151066884,-5000.0,0.000119,2]
[400144036,1767151068371,-5000.0,0.000119,2]
[400144037,1767151069755,-5000.0,0.000119,2]
[400144038,1767151071112,-5000.0,0.000119,2]
[400144039,1767151072663,-5000.0,0.000119,2]
[400144040,1767151073971,-5000.0,0.000119,2]
[400144041,1767151075773,-5000.0,0.000119,2]
[400144042,1767151077186,-5000.0,0.000119,2]
[400144043,1767151080757,5000.0,0.0001189,2]
[400144044,1767151103885,5000.0,0.0001189,2]
[400144047,1767151126873,0.01,0.0001189,2]
[400144048,1767151126901,4999.99,0.0001189,2]
[400144049,1767151149625,5000.0,0.0001189,2]
[400144050,1767151156949,-300.0,0.00011898,2]
[400144051,1767151156969,-500.0,0.00011899,2]
[400144052,1767151156989,-2200.0,0.00011899,2]
[400144053,1767151173162,0.02,0.0001189,2]
[400144054,1767151173185,4999.98,0.0001189,2]
[400144055,1767151189112,625.91847044,0.0001189,2]
[400144056,1767151197123,4374.11152956,0.0001189,2]
[400144057,1767151197146,625.88847044,0.0001189,2]
[400144058,1767151212955,5000.0,0.0001189,2]
[400144059,1767151213459,-151.0,0.00011893,2]
[400144060,1767151213480,-151.0,0.00011893,2]
[400144061,1767151213500,-151.0,0.00011893,2]
[400144062,1767151213520,-151.0,0.00011893,2]
[400144063,1767151213540,-151.0,0.00011893,2]
[400144064,1767151213561,-151.0,0.00011893,2]
[400144065,1767151213581,-151.0,0.00011893,2]
[400144066,1767151213604,-151.0,0.00011893,2]
[400144067,1767151213626,-151.0,0.00011893,2]
[400144068,1767151213647,-151.0,0.00011893,2]
[400144069,1767151213668,-161.0,0.00011898,2]
[400144070,1767151213689,-300.0,0.00011898,2]
[400144071,1767151213710,-29.0,0.00011898,2]
[400144072,1767151220732,4374.12152956,0.0001189,2]
[400144078,1767151422398,5000.0,0.00011889,2]
[400144079,1767151445870,5000.0,0.00011889,2]
[400144080,1767151468667,0.01,0.00011889,2]
[400144083,1767151531876,7592.632737,0.00010894,2]
[400144084,1767151551081,1342.6100843,0.00011889,2]
[400144085,1767151572162,500.0,0.00028767,120]
[400144087,1767151599129,-2348.46589008,0.00011889,2]
[400144094,1767151664231,1064.7671787,0.00011793,2]
[400144095,1767151664265,10000.01,0.00011793,2]
[400144096,1767151664300,10000.01,0.00011793,2]
[400144097,1767151664335,10000.01,0.00011793,2]
[400144098,1767151673128,-732.43169808,0.00011675,2]
[400144099,1767151676413,-411.36558161,0.00011675,2]
[400144100,1767151678508,-157.8114192,0.00011675,2]
[400144101,1767151680097,-200.52,0.00011675,2]
[400144102,1767151682562,-208.925306,0.00011675,2]
[400144103,1767151684692,-245.65366202,0.00011675,2]
[400144105,1767151688297,-171.12242898,0.00011558,2]
[400144106,1767151690347,-394.17170168,0.00011558,2]
[400144107,1767151692293,-312.86163821,0.00011558,2]
[400144108,1767151693821,-373.18935983,0.00011558,2]
[400144110,1767151696155,-375.09931903,0.00011558,2]
[400144111,1767151700159,-173.31490018,0.00011558,2]
[400144112,1767151702328,-187.84639568,0.00011558,2]
[400144113,1767151705779,-500.0,0.00011558,2]
[400144114,1767151707365,-480.10107358,0.00011558,2]
[400144115,1767151710317,-2032.29318283,0.00011558,2]
[400144116,1767151710340,-3043.29233309,0.00011675,2]
[400144117,1767151710376,-300.0,0.00011792,2]
[400144118,1767151710400,-1200.0,0.00011792,2]
[400144119,1767151710428,-10424.41448408,0.00011793,2]
[400144121,1767151719709,759.25,0.0001,2]
[400144122,1767151719731,1931.59,0.0001,2]
[400144123,1767151727842,-217.442454,0.0001,2]
[400144124,1767151732314,5000.0,9.99e-05,2]
[400144125,1767151735612,-158.91394739,0.0001,2]
[400144126,1767151739993,-300.0,0.0001,2]
[400144127,1767151742602,-151.58141478,9.999e-05,2]
[400144128,1767151744510,-148.41858522,9.999e-05,2]
[400144129,1767151744532,-291.74497095,0.0001,2]
[400144130,1767151748846,-360.92865171,0.0001,2]
[400144131,1767151750339,-194.96628636,0.0001,2]
[400144132,1767151751892,-271.74674311,0.0001,2]
[400144133,1767151753327,-151.3,0.0001,2]
[400144134,1767151756046,-389.37666352,0.0001,2]
[400144135,1767151757734,-972.09582152,0.0001,2]
[400144136,1767151757943,-1944.19164304,0.0001,2]
[400144137,1767151758130,-206.58,0.0001,2]
[400144138,1767151758167,-4094.96328608,0.0001,2]
[400144139,1767151758275,-1810.08342784,0.0001,2]
[400144140,1767151759135,-300.0,0.00010199,2]
[400144141,1767151759157,-300.0,0.00010199,2]
[400144142,1767151759177,-300.0,0.00010199,2]
[400144143,1767151759198,-300.0,0.00010199,2]
[400144144,1767151759220,-300.0,0.00010199,2]
[400144145,1767151759241,-300.0,0.00010199,2]
[400144146,1767151759262,-300.0,0.00010199,2]
[400144147,1767151759284,-300.0,0.00010199,2]
[400144148,1767151759306,-300.0,0.00010199,2]
[400144149,1767151759328,-300.0,0.00010199,2]
[400144150,1767151759349,-300.0,0.00010199,2]
[400144151,1767151759372,-300.0,0.00010199,2]
[400144152,1767151759392,-300.0,0.00010199,2]
[400144153,1767151759414,-300.0,0.00010199,2]
[400144154,1767151759435,-300.0,0.00010199,2]
[400144155,1767151759455,-420.0,0.00010999,2]
[400144156,1767151759476,-5000.0,0.00011674,2]
[400144157,1767151759497,-8624.1896402,0.00011792,2]
[400144158,1767151761101,-40653.67722814,0.00011792,2]
[400144159,1767151765075,-5000.0,0.00011674,2]
[400144160,1767151765096,-3.25390875,0.00011792,2]
[400144161,1767151786216,5000.0,0.00011792,2]
[400144162,1767151795566,-150.0,0.00013045,6]
[400144163,1767151797174,-150.0,0.00013045,6]
[400144164,1767151800859,-150.0,0.00013045,6]
[400144165,1767151801618,300.0,0.00011791,2]
[400144166,1767151802275,300.0,0.00011791,2]
[400144167,1767151802405,300.0,0.00011791,2]
[400144168,1767151802836,300.0,0.00011791,2]
[400144169,1767151805175,155.94,0.0001,2]
[400144170,1767151806695,300.0,0.00011791,2]
[400144171,1767151807760,1200.0,0.00011791,2]
[400144172,1767151808180,155.94,0.000102,2]
[400144173,1767151809164,1988.13,0.00011792,2]
[400144174,1767151809188,3011.87,0.00011792,2]
[400144175,1767151810609,155.94,0.000104,2]
[400144176,1767151813005,155.94,0.000106,2]
[400144177,1767151815445,155.94,0.000108,2]
[400144178,1767151815645,6520.32,0.00011474,2]
[400144179,1767151815668,4519.1035009,0.00011474,2]
[400144180,1767151818162,-150.0,0.00013045,6]
[400144181,1767151818415,-718.87922291,0.00011792,2]
[400144182,1767151818443,-500.0,0.00011792,2]
[400144183,1767151818471,-626.09766597,0.00011792,2]
[400144184,1767151818499,-210.71494723,0.00011792,2]
[400144185,1767151818529,-500.0,0.00011792,2]
[400144186,1767151818557,-500.0,0.00011792,2]
[400144187,1767151818587,-500.0,0.00011792,2]
[400144188,1767151818615,-199.34374529,0.00011792,2]
[400144189,1767151818644,-500.0,0.00011792,2]
[400144190,1767151818672,-326.2516625,0.00011792,2]
[400144191,1767151818702,-337.4355122,0.00011792,2]
[400144192,1767151818854,-162.5644878,0.00011792,2]
[400144193,1767151818884,-500.0,0.00011792,2]
[400144194,1767151818915,-260.54245112,0.00011792,2]
[400144195,1767151818945,-500.0,0.00011792,2]
[400144196,1767151818974,-500.0,0.00011792,2]
[400144197,1767151819003,-628.58139848,0.00011792,2]
[400144198,1767151819032,-500.0,0.00011792,2]
[400144199,1767151819061,-500.0,0.00011792,2]
[400144200,1767151819091,-500.0,0.00011792,2]
[400144201,1767151819122,-500.0,0.00011792,2]
[400144202,1767151819151,-396.6333252,0.00011792,2]
[400144203,1767151819341,-103.3666748,0.00011792,2]
[400144204,1767151819371,-314.06323255,0.00011792,2]
[400144205,1767151819402,-500.0,0.00011792,2]
[400144206,1767151819433,-500.0,0.00011792,2]
[400144207,1767151819463,-500.0,0.00011792,2]
[400144208,1767151819493,-500.0,0.00011792,2]
[400144209,1767151819525,-500.0,0.00011792,2]
[400144210,1767151819556,-500.0,0.00011792,2]
[400144211,1767151819587,-500.0,0.00011792,2]
[400144212,1767151819618,-500.0,0.00011792,2]
[400144213,1767151819651,-500.0,0.00011792,2]
[400144214,1767151819830,-500.0,0.00011792,2]
[400144215,1767151819860,-500.0,0.00011792,2]
[400144216,1767151819890,-500.0,0.00011792,2]
[400144217,1767151819920,-500.0,0.00011792,2]
[400144218,1767151819949,-500.0,0.00011792,2]
[400144219,1767151819978,-500.0,0.00011792,2]
[400144220,1767151820008,-500.0,0.00011792,2]
[400144221,1767151820164,-500.0,0.00011792,2]
[400144222,1767151820196,-500.0,0.00011792,2]
[400144223,1767151820226,-500.0,0.00011792,2]
[400144224,1767151820339,-500.0,0.00011792,2]
[400144225,1767151820367,-500.0,0.00011792,2]
[400144226,1767151820397,-500.0,0.00011792,2]
[400144227,1767151820428,-500.0,0.00011792,2]
[400144228,1767151820457,-500.0,0.00011792,2]
[400144229,1767151820485,-500.0,0.00011792,2]
[400144230,1767151820513,-500.0,0.00011792,2]
[400144231,1767151820544,-500.0,0.00011792,2]
[400144232,1767151820572,-500.0,0.00011792,2]
[400144233,1767151820603,-500.0,0.00011792,2]
[400144234,1767151820765,-500.0,0.00011792,2]
[400144235,1767151820793,-500.0,0.00011792,2]
[400144236,1767151820821,-500.0,0.00011792,2]
[400144237,1767151820850,-640.45147029,0.00011792,2]
[400144238,1767151820878,-500.0,0.00011792,2]
[400144239,1767151820906,-500.0,0.00011792,2]
[400144240,1767151820934,-500.0,0.00011792,2]
[400144241,1767151820962,-500.0,0.00011792,2]
[400144242,1767151820990,-500.0,0.00011792,2]
[400144243,1767151821019,-219.10705942,0.00011792,2]
[400144244,1767151822668,-280.89294058,0.00011792,2]
[400144245,1767151822697,-558.42453892,0.00011792,2]
[400144246,1767151822728,-500.0,0.00011792,2]
[400144247,1767151822758,-500.0,0.00011792,2]
[400144248,1767151822786,-497.13735739,0.00011792,2]
[400144249,1767151822921,-332.10184524,0.00011792,2]
[400144291,1767151831665,-586.0,0.00011792,2]
[400144293,1767151831675,-245.40964462,0.00011792,2]
[400144295,1767151831684,-682.90909462,0.00011793,2]
[400144297,1767151831695,-11779.90897188,0.00011793,2]
[400144356,1767151832274,4662.89663574,0.00011792,2]
[400144359,1767151832297,337.10336426,0.00011792,2]
[400144410,1767151837762,-2292.4151478,0.00011793,2]
[400144411,1767151837814,-330046.69405157,0.00011793,2]
[400144412,1767151837825,-184.01414135,0.00011893,2]
[400144413,1767151837835,-151.0,0.00011893,2]
[400144414,1767151837845,-151.0,0.00011893,2]
[400144415,1767151837855,-151.0,0.00011893,2]
[400144416,1767151837865,-151.0,0.00011893,2]
[400144417,1767151837875,-151.0,0.00011893,2]
[400144418,1767151837885,-151.0,0.00011893,2]
[400144419,1767151837894,-151.0,0.00011893,2]
[400144420,1767151837904,-151.0,0.00011893,2]
[400144421,1767151837914,-151.0,0.00011893,2]
[400144422,1767151837924,-151.0,0.00011893,2]
[400144423,1767151837934,-242.32257062,0.00011893,2]
[400144424,1767151837945,-153.24570318,0.00011898,2]
[400144425,1767151837954,-1000.0,0.000119,2]
[400144426,1767151837964,-1000.0,0.000119,2]
[400144427,1767151837974,-1000.0,0.000119,2]
[400144428,1767151837983,-1000.0,0.000119,2]
[400144429,1767151837993,-1000.0,0.000119,2]
[400144430,1767151838003,-1000.0,0.000119,2]
[400144431,1767151838013,-1000.0,0.000119,2]
[400144432,1767151838022,-1000.0,0.000119,2]
[400144433,1767151838032,-1000.0,0.000119,2]
[400144434,1767151838041,-1000.0,0.000119,2]
[400144435,1767151838051,-1000.0,0.000119,2]
[400144436,1767151838061,-1009.65882188,0.000119,2]
[400144437,1767151838071,-273.43867277,0.000119,2]
[400144438,1767151838081,-600.0,0.00012027,2]
[400144439,1767151838091,-300.0,0.00012027,2]
[400144440,1767151838101,-300.0,0.00012027,2]
[400144441,1767151838111,-300.0,0.00012027,2]
[400144442,1767151838121,-300.0,0.00012027,2]
[400144443,1767151838131,-300.0,0.00012027,2]
[400144444,1767151838141,-300.0,0.00012027,2]
[400144445,1767151838151,-300.0,0.00012027,2]
[400144446,1767151838161,-300.0,0.00012027,2]
[400144447,1767151838171,-300.0,0.00012027,2]
[400144448,1767151838181,-300.0,0.00012027,2]
[400144449,1767151838191,-300.0,0.00012027,2]
[400144450,1767151838204,-300.0,0.00012027,2]
[400144451,1767151838214,-300.0,0.00012027,2]
[400144452,1767151838224,-300.0,0.00012027,2]
[400144453,1767151838234,-300.0,0.00012027,2]
[400144454,1767151838244,-1080.4388829,0.00012125,2]
[400144455,1767151838254,-2645.4,0.00012329,2]
[400144456,1767151838263,-2204.5,0.00012329,2]
[400144457,1767151838274,-2204.5,0.00012329,2]
[400144458,1767151838283,-1837.08,0.00012329,2]
[400144459,1767151838294,-1163.48,0.00012329,2]
[400144460,1767151838304,-500.0,0.00012329,2]
[400144461,1767151838314,-969.57,0.00012329,2]
[400144462,1767151838323,-301.01683347,0.00012574,2]
[400144463,1767151838333,-296.19409471,0.00012603,2]
[400144464,1767151838343,-1059.95,0.00012713,2]
[400144465,1767151838353,-420.0,0.00012947,2]
[400144466,1767151838363,-420.0,0.00012947,2]
[400144467,1767151838373,-420.0,0.00012947,2]
[400144468,1767151838383,-420.0,0.00012947,2]
[400144469,1767151838393,-1680.0,0.00012948,2]
[400144470,1767151838402,-1009.9133568,0.00012955,2]
[400144471,1767151838412,-420.0,0.0001297,2]
[400144472,1767151838422,-1680.0,0.0001297,2]
[400144473,1767151838431,-11039.4235009,0.00012985,2]
[400144474,1767151838441,-24.37893491,0.00013045,6]
[400144475,1767151838452,-720.0,0.00013229,2]
[400144476,1767151838462,-500.0,0.00013273,2]
[400144477,1767151838471,-500.0,0.00013273,2]
[400144478,1767151838481,-500.0,0.00013273,2]
[400144479,1767151838490,-500.0,0.00013273,2]
[400144480,1767151838500,-500.0,0.00013273,2]
[400144481,1767151838510,-500.0,0.00013273,2]
[400144482,1767151838520,-167.36910648,0.00013273,2]
[400144483,1767151838530,-500.0,0.00013273,2]
[400144484,1767151838540,-500.0,0.00013273,2]
[400144485,1767151838549,-500.0,0.00013273,2]
[400144486,1767151838559,-500.0,0.00013273,2]
[400144487,1767151838569,-500.0,0.00013273,2]
[400144488,1767151838578,-529.84736886,0.00013273,2]
[400144489,1767151838588,-500.0,0.00013273,2]
[400144490,1767151838597,-500.0,0.00013273,2]
[400144491,1767151838607,-500.0,0.00013273,2]
[400144492,1767151838616,-500.0,0.00013273,2]
[400144493,1767151838627,-500.0,0.00013273,2]
[400144494,1767151838637,-500.0,0.00013273,2]
[400144495,1767151838647,-500.0,0.00013273,2]
[400144496,1767151838657,-500.0,0.00013273,2]
[400144497,1767151838667,-530.18035564,0.00013273,2]
[400144498,1767151838677,-500.0,0.00013273,2]
[400144499,1767151838686,-500.0,0.00013273,2]
[400144500,1767151838695,-500.0,0.00013273,2]
[400144501,1767151838705,-500.0,0.00013273,2]
[400144502,1767151838715,-500.0,0.00013273,2]
[400144503,1767151838725,-500.0,0.00013273,2]
[400144504,1767151838735,-500.0,0.00013273,2]
[400144505,1767151838744,-500.0,0.00013273,2]
[400144506,1767151838755,-500.0,0.00013273,2]
[400144507,1767151838767,-500.0,0.00013273,2]
[400144508,1767151838777,-500.0,0.00013273,2]
[400144509,1767151838787,-500.0,0.00013273,2]
[400144510,1767151838797,-459.90209075,0.00013273,2]
[400144511,1767151838806,-500.0,0.00013273,2]
[400144512,1767151838816,-500.0,0.00013273,2]
[400144513,1767151838826,-500.0,0.00013273,2]
[400144514,1767151838836,-500.0,0.00013273,2]
[400144515,1767151838845,-500.0,0.00013273,2]
[400144516,1767151838855,-520.05984388,0.00013273,2]
[400144517,1767151838865,-500.0,0.00013273,2]
[400144518,1767151838876,-500.0,0.00013273,2]
[400144519,1767151838885,-500.0,0.00013273,2]
[400144520,1767151838895,-502.50925578,0.00013273,2]
[400144521,1767151838905,-500.0,0.00013273,2]
[400144522,1767151838915,-494.0031485,0.00013273,2]
[400144523,1767151838925,-500.0,0.00013273,2]
[400144524,1767151838935,-499.96763801,0.00013273,2]
[400144525,1767151838945,-205.30476225,0.00013273,2]
[400144526,1767151838954,-500.0,0.00013273,2]
[400144527,1767151838964,-500.0,0.00013273,2]
[400144528,1767151838973,-500.0,0.00013273,2]
[400144529,1767151838983,-500.0,0.00013273,2]
[400144530,1767151838993,-500.0,0.00013273,2]
[400144531,1767151839004,-500.0,0.00013273,2]
[400144532,1767151839013,-500.0,0.00013273,2]
[400144533,1767151839023,-500.0,0.00013273,2]
[400144534,1767151839034,-10085.20274253,0.0001354,2]
[400144535,1767151839043,-300.0,0.00013673,2]
[400144536,1767151839053,-1182.62181526,0.00013675,2]
[400144537,1767151839064,-190.40044785,0.00013698,2]
[400144538,1767151839073,-500.0,0.00013698,2]
[400144539,1767151839087,-192.79997823,0.00013698,2]
[400144540,1767151839096,-1401.94,0.00013698,2]
[400144541,1767151839106,-1401.94,0.00013698,2]
[400144542,1767151839115,-1401.94,0.00013698,2]
[400144543,1767151839125,-1401.94,0.00013698,2]
[400144544,1767151839135,-1401.94,0.00013698,2]
[400144545,1767151839145,-1401.94,0.00013698,2]
[400144546,1767151839155,-1401.94,0.00013698,2]
[400144547,1767151839165,-1401.94,0.00013698,2]
[400144548,1767151839175,-1401.94,0.00013698,2]
[400144549,1767151839184,-1401.94,0.00013698,2]
[400144550,1767151839193,-1401.94,0.00013698,2]
[400144551,1767151839203,-1401.94,0.00013698,2]
[400144552,1767151839216,-1401.94,0.00013698,2]
[400144553,1767151839226,-1401.94,0.00013698,2]
[400144554,1767151839235,-1401.94,0.00013698,2]
[400144555,1767151839245,-1401.94,0.00013698,2]
[400144556,1767151839256,-1401.94,0.00013698,2]
[400144557,1767151839266,-1401.94,0.00013698,2]
[400144558,1767151839275,-1401.94,0.00013698,2]
[400144559,1767151839286,-1401.94,0.00013698,2]
[400144560,1767151839295,-1401.94,0.00013698,2]
[400144561,1767151839305,-1401.94,0.00013698,2]
[400144562,1767151839315,-1401.94,0.00013698,2]
[400144563,1767151839325,-1402.08191311,0.00013698,2]
[400144564,1767151839334,-1262.02,0.00013698,2]
[400144565,1767151839344,-1262.02,0.00013698,2]
[400144566,1767151839354,-1262.02,0.00013698,2]
[400144567,1767151839363,-1262.02,0.00013698,2]
[400144568,1767151839374,-1262.02,0.00013698,2]
[400144569,1767151839383,-1262.02,0.00013698,2]
[400144570,1767151839394,-1262.02,0.00013698,2]
[400144571,1767151839404,-1262.02,0.00013698,2]
[400144572,1767151839414,-1262.02,0.00013698,2]
[400144573,1767151839423,-1262.02,0.00013698,2]
[400144574,1767151839433,-500.0,0.00013698,2]
[400144575,1767151839443,-1262.02,0.00013698,2]
[400144576,1767151839452,-262.16767073,0.00013698,2]
[400144577,1767151839461,-1262.02,0.00013698,2]
[400144578,1767151839471,-1262.02,0.00013698,2]
[400144579,1767151839481,-1262.02,0.00013698,2]
[400144580,1767151839494,-1262.02,0.00013698,2]
[400144581,1767151839503,-1262.02,0.00013698,2]
[400144582,1767151839517,-1262.02,0.00013698,2]
[400144583,1767151839529,-1262.02,0.00013698,2]
[400144584,1767151839539,-15490.5579877,0.00013699,2]
[400144586,1767151839548,-500.0,0.00013699,2]
[400144588,1767151839558,-500.0,0.00013699,2]
[400144589,1767151839567,-500.0,0.00013699,2]
[400144590,1767151839578,-500.0,0.00013699,2]
[400144591,1767151839589,-510.7161434,0.00013699,2]
[400144592,1767151839598,-500.0,0.00013699,2]
[400144593,1767151839608,-242.87306652,0.00013699,2]
[400144594,1767151839617,-500.0,0.00013699,2]
[400144595,1767151839626,-500.0,0.00013699,2]
[400144597,1767151839635,-500.0,0.00013699,2]
[400144598,1767151839645,-500.0,0.00013699,2]